bitfinex/quotes_SOLUSD_20250922
["timestamp","ask_amount","ask_price","bid_price","bid_amount"]
[1758558137030,42.53361296,221.47,221.45,0.1]
[1758558137176,0.69,221.46,221.45,0.1]
[1758558137377,5.20548812,221.46,221.45,0.1]
[1758558137578,26.69,221.46,221.45,0.1]
[1758558137794,26.0,221.49,221.45,0.1]
[1758558137992,26.69,221.5,221.45,0.1]
[1758558138198,42.55361296,221.49,221.45,4.61567061]
[1758558138397,6.85361296,221.49,221.46,13.59559401]
[1758558138982,6.85361296,221.51,221.46,14.27559401]
[1758558139182,42.55361296,221.51,221.45,0.1]
[1758558139394,6.85361296,221.49,221.46,13.59559401]
[1758558139609,6.85361296,221.49,221.46,14.27559401]
[1758558139809,6.85361296,221.49,221.46,13.59559401]
[1758558140004,6.85361296,221.49,221.45,4.61564952]
[1758558140005,6.85361296,221.49,221.45,0.1]
[1758558140189,6.85361296,221.47,221.45,0.1]
[1758558140711,0.69,221.46,221.45,0.1]
[1758558141319,36.39,221.46,221.45,0.1]
[1758558141497,66.90548812,221.46,221.45,0.1]
[1758558142013,61.72,221.46,221.45,0.1]
[1758558142217,69.26361296,221.46,221.45,0.1]
[1758558142707,0.69,221.52,221.45,0.1]
[1758558142924,6.85361296,221.47,221.45,0.1]
[1758558143710,0.69,221.46,221.45,0.1]
[1758558144098,35.72,221.46,221.45,0.1]
[1758558145316,35.7,221.46,221.45,14.37559401]
[1758558145494,35.7,221.46,221.45,18.89128481]
[1758558145694,42.57361296,221.48,221.45,18.89128481]
[1758558145900,6.85361296,221.48,221.45,18.21128481]
[1758558146107,42.57361296,221.48,221.46,0.68]
[1758558146419,43.26361296,221.48,221.45,13.69559401]
[1758558147112,42.57361296,221.48,221.45,13.69559401]
[1758558147313,42.57361296,221.48,221.46,0.7]
[1758558147522,42.57361296,221.48,221.45,13.69559401]
[1758558147895,42.57361296,221.48,221.45,14.39559401]
[1758558148096,42.57361296,221.48,221.45,13.69559401]
[1758558148299,6.85361296,221.46,221.45,0.1]
[1758558148602,28.80749863,221.46,221.45,0.1]
[1758558148806,29.51749863,221.46,221.45,0.1]
[1758558149306,26.0,221.45,221.37,13.59559401]
[1758558149615,2.80749863,221.38,221.34,13.59559401]
[1758558149916,2.80749863,221.38,221.34,14.29559401]
[1758558150918,2.80749863,221.36,221.34,13.59559401]
[1758558151494,2.80749863,221.36,221.34,4.51784065]
[1758558151718,2.80749863,221.36,221.35,14.29559401]
[1758558151920,11.29111848,221.42,221.35,14.29559401]
[1758558151921,3.75528177,221.66,221.39,13.59559401]
[1758558152218,2.80749863,221.66,221.57,13.59559401]
[1758558152523,2.80749863,221.6,221.54,0.7]
[1758558152699,17.96,221.6,221.55,13.59559401]
[1758558152901,6.84888734,221.57,221.56,0.7]
[1758558153116,6.84888734,221.57,221.56,14.29559401]
[1758558153497,6.84888734,221.59,221.57,13.59559401]
[1758558153924,6.84888734,221.59,221.54,18.10930318]
[1758558154427,6.84888734,221.59,221.55,0.7]
[1758558154923,6.84888734,221.57,221.48,13.59559401]
[1758558155130,6.84888734,221.53,221.48,13.59559401]
[1758558155427,6.84888734,221.53,221.5,18.11017567]
[1758558155922,6.84888734,221.53,221.5,18.81017567]
[1758558156225,6.84888734,221.53,221.5,18.11017567]
[1758558156424,0.71,221.65,221.51,0.7]
[1758558156621,6.84888734,221.68,221.58,20.44448135]
[1758558156924,6.84888734,221.68,221.59,0.7]
[1758558157101,6.84888734,221.66,221.59,0.7]
[1758558157519,4.51121035,221.67,221.59,0.7]
[1758558157707,6.84888734,221.65,221.58,13.59559401]
[1758558157921,0.71,221.64,221.58,13.59559401]
[1758558158121,36.58,221.63,221.58,13.59559401]
[1758558158622,0.71,221.62,221.57,13.59559401]
[1758558159008,0.71,221.61,221.54,7.54888734]
[1758558159203,0.71,221.61,221.55,13.59559401]
[1758558159604,5.22250959,221.61,221.55,13.59559401]
[1758558160133,5.22250959,221.61,221.55,18.10917884]
[1758558160322,47.94106098,221.63,221.55,18.10917884]
[1758558161438,0.71,221.62,221.55,13.59559401]
[1758558161730,4.51243174,221.61,221.55,13.59559401]
[1758558161936,4.51243174,221.61,221.55,18.10921125]
[1758558162109,6.84888734,221.59,221.49,13.59559401]
[1758558162310,37.23,221.58,221.51,13.59559401]
[1758558162529,6.84888734,221.56,221.51,13.59559401]
[1758558162729,36.54,221.55,221.51,13.59559401]
[1758558163434,36.54,221.55,221.51,14.29559401]
[1758558163635,36.54,221.55,221.51,13.59559401]
[1758558165117,36.54,221.55,221.51,18.11005773]
[1758558165625,36.54,221.55,221.51,18.81005773]
[1758558166522,36.54,221.55,221.51,18.11005773]
[1758558167445,6.84888734,221.56,221.51,18.11005773]
[1758558167748,36.44,221.57,221.52,7.54888734]
[1758558168119,36.46,221.57,221.54,13.59559401]
[1758558168450,134.2,221.56,221.51,13.59559401]
[1758558168627,134.2,221.56,221.51,14.29559401]
[1758558169020,134.2,221.56,221.51,18.80993605]
[1758558169746,134.91,221.55,221.46,0.7]
[1758558169951,134.91,221.55,221.47,13.59559401]
[1758558169952,141.75888734,221.55,221.47,13.59559401]
[1758558170150,6.84888734,221.52,221.47,13.59559401]
[1758558170321,36.44,221.51,221.47,13.59559401]
[1758558170740,7.55888734,221.5,221.44,13.59559401]
[1758558171143,6.84888734,221.5,221.44,13.59559401]
[1758558171339,36.44,221.51,221.44,13.59559401]
[1758558171723,36.44,221.51,221.45,0.7]
[1758558172549,36.44,221.5,221.45,0.7]
[1758558172846,36.44,221.5,221.45,5.21569202]
[1758558173046,36.44,221.5,221.45,4.51569202]
[1758558173249,43.99888734,221.5,221.45,4.51569202]
[1758558173429,0.71,221.49,221.45,4.51569202]
[1758558173850,0.71,221.49,221.44,13.59559401]
[1758558174155,47.80358528,221.5,221.43,13.59559401]
[1758558174156,7.55888734,221.48,221.43,13.59559401]
[1758558174455,6.84888734,221.44,221.36,0.7]
[1758558174624,4.51630385,221.42,221.33,4.51814033]
[1758558174930,6.84888734,221.4,221.33,4.51814033]
[1758558175329,6.84888734,221.4,221.34,13.59559401]
[1758558175645,36.44,221.39,221.34,13.59559401]
[1758558175851,36.44,221.39,221.34,18.11336865]
[1758558176323,37.15,221.39,221.34,18.11336865]
[1758558176843,36.44,221.38,221.34,18.81336865]
[1758558177428,6.84888734,221.4,221.34,30.10820916]
[1758558177625,36.42,221.39,221.34,30.10820916]
[1758558178033,6.84888734,221.4,221.34,30.10820916]
[1758558178435,36.4,221.39,221.34,30.10820916]
[1758558178634,36.4,221.39,221.35,0.66]
[1758558179730,26.0,221.45,221.36,36.91582937]
[1758558179932,134.2,221.44,221.38,6.84888734]
[1758558180130,36.38,221.43,221.38,7.50888734]
[1758558180345,134.2,221.42,221.38,7.50888734]
[1758558180931,134.2,221.42,221.36,30.06694203]
[1758558181344,134.2,221.42,221.36,36.91582937]
[1758558183428,134.2,221.42,221.33,17.86897878]
[1758558183429,141.71888734,221.41,221.33,17.86897878]
[1758558183636,6.84888734,221.39,221.34,13.59559401]
[1758558183858,37.01,221.38,221.34,18.11349319]
[1758558184029,0.67,221.37,221.34,13.59559401]
[1758558184357,0.67,221.37,221.33,13.59559401]
[1758558184358,7.51888734,221.37,221.33,13.59559401]
[1758558184537,36.34,221.36,221.33,13.59559401]
[1758558184943,0.67,221.35,221.3,0.1]
[1758558185149,0.67,221.34,221.3,0.1]
[1758558185328,6.84888734,221.33,221.3,0.1]
[1758558185536,37.01,221.32,221.3,0.1]
[1758558185950,36.34,221.32,221.3,4.61875244]
[1758558186642,36.32,221.31,221.3,4.61875244]
[1758558187238,36.32,221.31,221.3,0.1]
[1758558187954,36.32,221.31,221.3,4.61875282]
[1758558188151,36.99,221.31,221.3,0.1]
[1758558188463,36.32,221.31,221.3,0.1]
[1758558188663,36.32,221.31,221.3,4.61875282]
[1758558189535,26.0,221.38,221.3,4.61875282]
[1758558189735,6.84888734,221.36,221.3,4.61875282]
[1758558190062,0.67,221.35,221.3,0.1]
[1758558190246,177.97888734,221.34,221.3,0.1]
[1758558190570,171.13,221.34,221.3,0.1]
[1758558190755,5.35249666,221.33,221.3,0.1]
[1758558191067,4.68249666,221.31,221.3,0.1]
[1758558191244,40.92249666,221.31,221.3,0.1]
[1758558191563,41.59249666,221.31,221.3,0.1]
[1758558192058,46.1110453,221.31,221.3,0.1]
[1758558196161,0.67,221.31,221.3,0.1]
[1758558196362,36.87,221.31,221.3,0.1]
[1758558196671,46.0710453,221.31,221.3,0.1]
[1758558197165,41.53249666,221.31,221.3,0.1]
[1758558197563,46.0510453,221.31,221.3,0.1]
[1758558198959,46.0310453,221.31,221.3,0.1]
[1758558201774,41.34854864,221.31,221.3,0.1]
[1758558201946,46.0310453,221.31,221.3,0.1]
[1758558202146,9.8710453,221.31,221.3,0.1]
[1758558202353,41.30854864,221.31,221.3,0.1]
[1758558202562,43.10775158,221.31,221.3,0.1]
[1758558203244,5.18854864,221.31,221.3,0.1]
[1758558203445,6.98775158,221.31,221.3,0.1]
[1758558203668,43.08775158,221.31,221.3,0.1]
[1758558203868,6.98775158,221.31,221.3,0.1]
[1758558204255,42.41775158,221.31,221.3,0.1]
[1758558204550,43.12775158,221.31,221.3,0.1]
[1758558205260,43.10775158,221.31,221.3,0.1]
[1758558206369,4.51854864,221.31,221.3,0.1]
[1758558206569,40.57854864,221.31,221.3,0.1]
[1758558206760,66.57854864,221.31,221.3,0.1]
[1758558206955,30.51854864,221.31,221.3,0.1]
[1758558207272,26.0,221.31,221.3,0.82]
[1758558207458,62.06,221.31,221.3,0.82]
[1758558207662,36.06,221.31,221.3,0.82]
[1758558208363,134.2,221.32,221.3,0.1]
[1758558208562,36.06,221.31,221.3,0.1]
[1758558209051,138.71837014,221.32,221.3,0.1]
[1758558209252,36.04,221.31,221.3,0.82]
[1758558209473,138.71837014,221.32,221.3,0.82]
[1758558209770,36.04,221.31,221.3,0.82]
[1758558210181,138.71837014,221.32,221.3,0.82]
[1758558210487,36.02,221.31,221.3,0.82]
[1758558211275,134.2,221.32,221.3,0.82]
[1758558211466,2.46920294,221.37,221.3,5.3387235]
[1758558211789,0.67,221.42,221.32,13.59559401]
[1758558211956,1.79920294,221.4,221.33,0.72]
[1758558212159,29.14,221.39,221.33,0.72]
[1758558212364,33.65698925,221.39,221.33,0.72]
[1758558212573,27.79920294,221.36,221.3,0.1]
[1758558212890,27.79920294,221.32,221.3,0.1]
[1758558213176,36.08,221.31,221.3,0.1]
[1758558213576,38.54920294,221.31,221.3,0.1]
[1758558214591,43.06775158,221.31,221.3,0.1]
[1758558215801,43.06775158,221.31,221.22,0.82]
[1758558215802,26.0,221.28,221.22,0.1]
[1758558216004,27.79920294,221.23,221.22,1e-08]
[1758558216171,63.99920294,221.23,221.17,0.2]
[1758558216377,26.0,221.15,221.14,0.2]
[1758558216704,66.89296314,221.15,221.14,0.2]
[1758558216869,67.56296314,221.15,221.14,0.2]
[1758558218170,62.2,221.15,221.14,0.2]
[1758558218398,72.08478091,221.15,221.14,0.2]
[1758558218685,40.89296314,221.15,221.14,0.2]
[1758558218889,4.69296314,221.15,221.14,0.2]
[1758558219076,40.87296314,221.15,221.14,0.2]
[1758558219665,40.89296314,221.15,221.14,0.2]
[1758558219865,45.41478091,221.15,221.14,0.2]
[1758558220064,9.21478091,221.15,221.14,0.2]
[1758558220265,45.41478091,221.15,221.14,0.2]
[1758558220501,9.21478091,221.15,221.14,0.2]
[1758558220678,45.39478091,221.15,221.14,0.2]
[1758558222387,36.16,221.15,221.14,0.92]
[1758558222564,40.85296314,221.15,221.14,0.2]
[1758558224067,45.37478091,221.15,221.14,0.2]
[1758558224385,11.3027126,221.19,221.14,0.2]
[1758558224588,4.69296314,221.15,221.14,0.2]
[1758558224891,45.35478091,221.15,221.14,0.2]
[1758558225296,46.02478091,221.15,221.14,0.2]
[1758558227695,45.35478091,221.15,221.14,0.2]
[1758558228068,12.81998595,221.15,221.14,0.2]
[1758558228498,40.79296314,221.15,221.14,0.92]
[1758558228701,66.79296314,221.15,221.14,0.2]
[1758558228999,40.79296314,221.15,221.14,0.92]
[1758558229211,40.79296314,221.15,221.14,0.2]
[1758558229573,41.46296314,221.15,221.14,0.2]
[1758558230406,45.98478091,221.15,221.14,0.2]
[1758558230594,26.0,221.12,221.11,0.2]
[1758558230795,66.79296314,221.12,221.11,0.2]
[1758558231103,67.46296314,221.12,221.11,0.2]
[1758558232309,35.21539439,221.12,221.11,0.2]
[1758558232476,71.29539439,221.12,221.11,0.2]
[1758558234097,71.27539439,221.12,221.11,0.2]
[1758558235687,71.25649459,221.12,221.11,0.2]
[1758558235875,45.25649459,221.12,221.11,0.2]
[1758558237077,45.21649459,221.12,221.11,0.2]
[1758558237771,35.21649459,221.12,221.11,0.2]
[1758558237997,45.21649459,221.12,221.11,0.2]
[1758558238601,42.32495841,221.12,221.11,0.2]
[1758558239201,6.32495841,221.12,221.11,0.2]
[1758558239402,42.30495841,221.12,221.11,0.2]
[1758558239574,4.52120444,221.18,221.11,0.88]
[1758558239780,36.02,221.17,221.12,0.68]
[1758558239979,36.02,221.17,221.11,0.2]
[1758558240182,26.0,221.14,221.11,0.2]
[1758558240507,36.02,221.17,221.11,0.2]
[1758558240508,36.04,221.13,221.11,0.2]
[1758558240681,36.04,221.12,221.11,0.2]
[1758558241101,37.84252716,221.12,221.11,0.2]
[1758558241503,38.52252716,221.12,221.11,0.2]
[1758558241801,26.0,221.09,221.08,0.1]
[1758558241997,62.06,221.09,221.08,0.1]
[1758558242181,62.74,221.09,221.08,0.1]
[1758558242503,26.0,221.09,221.08,0.1]
[1758558242710,62.06,221.09,221.08,0.1]
[1758558243307,26.0,221.1,221.08,0.78]
[1758558243510,36.06,221.09,221.08,0.78]
[1758558245207,36.06,221.09,221.08,0.1]
[1758558245708,36.06,221.09,221.08,0.78]
[1758558246713,36.06,221.09,221.08,0.1]
[1758558247102,40.58304491,221.09,221.08,0.1]
[1758558248122,36.06,221.09,221.08,0.1]
[1758558248430,1.80252716,221.12,221.08,0.78]
[1758558248598,1.80252716,221.12,221.08,0.1]
[1758558248912,26.0,221.09,221.08,0.1]
[1758558249119,62.06,221.09,221.08,0.78]
[1758558249296,62.06,221.09,221.08,0.1]
[1758558249692,66.58304491,221.09,221.08,0.1]
[1758558250100,67.26304491,221.09,221.08,0.1]
[1758558250317,62.06,221.09,221.08,0.1]
[1758558250826,36.04,221.09,221.08,0.1]
[1758558251523,36.04,221.09,221.08,0.78]
[1758558251816,2.8170946,221.12,221.08,0.78]
[1758558251998,36.04,221.11,221.08,0.78]
[1758558252202,26.0,221.09,221.08,0.1]
[1758558252694,26.0,221.09,221.08,0.78]
[1758558252921,2.8170946,221.12,221.09,13.59559401]
[1758558253121,2.8170946,221.12,221.11,13.59559401]
[1758558253328,38.8570946,221.12,221.11,14.27559401]
[1758558253497,28.8170946,221.12,221.11,14.27559401]
[1758558253698,38.8570946,221.12,221.11,14.27559401]
[1758558255113,36.04,221.12,221.11,14.27559401]
[1758558255618,26.0,221.13,221.11,14.27559401]
[1758558255814,134.2,221.15,221.13,13.59559401]
[1758558256006,36.02,221.18,221.14,0.7]
[1758558256716,36.02,221.18,221.15,13.59559401]
[1758558256920,36.02,221.18,221.17,13.59559401]
[1758558257119,6.87069124,221.23,221.17,18.81698733]
[1758558257312,36.02,221.22,221.19,13.59559401]
[1758558257510,43.55069124,221.25,221.21,13.59559401]
[1758558257709,36.68,221.25,221.22,0.7]
[1758558257915,36.02,221.24,221.23,13.59559401]
[1758558258110,36.02,221.24,221.23,0.7]
[1758558258297,6.87069124,221.29,221.23,0.7]
[1758558258506,36.0,221.28,221.23,0.7]
[1758558258903,26.0,221.25,221.24,14.29559401]
[1758558259108,36.0,221.27,221.25,13.59559401]
[1758558259306,6.87069124,221.31,221.26,0.7]
[1758558259606,9.03661017,221.35,221.26,0.7]
[1758558259607,36.0,221.3,221.27,13.59559401]
[1758558259920,0.91,221.35,221.28,0.7]
[1758558259921,36.0,221.32,221.28,0.7]
[1758558260116,62.0,221.32,221.28,0.7]
[1758558260727,36.0,221.32,221.28,0.7]
[1758558260926,36.0,221.32,221.3,13.59559401]
[1758558261122,36.0,221.32,221.31,14.29559401]
[1758558262500,26.0,221.34,221.32,13.59559401]
[1758558262702,26.0,221.34,221.33,14.29559401]
[1758558262896,61.98,221.34,221.29,0.7]
[1758558263132,61.98,221.34,221.3,0.7]
[1758558263459,61.98,221.34,221.32,13.59559401]
[1758558264032,0.2,221.35,221.33,14.29559401]
[1758558264033,36.16,221.35,221.33,14.29559401]
[1758558264317,36.16,221.35,221.33,13.59559401]
[1758558264908,36.16,221.35,221.34,13.59559401]
[1758558265112,0.2,221.35,221.34,14.29559401]
[1758558265419,0.2,221.35,221.34,18.81353021]
[1758558268816,13.5804984,221.6,221.38,13.59559401]
[1758558269033,26.34813766,221.61,221.38,13.59559401]
[1758558269034,6.87069124,221.51,221.4,13.59559401]
[1758558269253,6.87069124,221.51,221.42,13.59559401]
[1758558269423,6.87069124,221.51,221.44,13.59559401]
[1758558269625,6.87069124,221.51,221.46,13.59559401]
[1758558269830,0.69,221.53,221.46,13.59559401]
[1758558270036,42.17069124,221.52,221.48,13.59559401]
[1758558270234,42.17069124,221.52,221.48,0.7]
[1758558270527,68.17069124,221.52,221.48,0.7]
[1758558270927,68.17069124,221.52,221.39,38.3937847]
[1758558270928,68.17069124,221.52,221.5,13.59559401]
[1758558271127,42.17069124,221.52,221.48,13.59559401]
[1758558271347,42.86069124,221.52,221.48,13.59559401]
[1758558271923,68.86069124,221.52,221.48,13.59559401]
[1758558272233,61.3,221.52,221.48,0.7]
[1758558272422,6.87069124,221.51,221.48,0.7]
[1758558272943,26.0,221.52,221.5,13.59559401]
[1758558273253,42.89069124,221.56,221.52,13.59559401]
[1758558273471,42.89069124,221.56,221.52,13.68105632]
[1758558273620,42.89069124,221.56,221.52,14.38105632]
[1758558273826,42.89069124,221.56,221.52,0.7]
[1758558275740,42.89069124,221.56,221.51,13.59559401]
[1758558276139,42.89069124,221.56,192.28,0.25355]
[1758558276140,6.87069124,221.52,221.45,13.59559401]
[1758558276346,6.87069124,221.5,221.45,13.59559401]
[1758558276533,6.87069124,221.5,221.47,13.59559401]
[1758558276956,26.0,221.49,221.47,13.59559401]
[1758558278040,26.0,221.49,221.41,11.29097043]
[1758558278246,7.56069124,221.48,221.43,13.59559401]
[1758558278633,2.80584436,221.48,221.44,0.7]
[1758558278936,2.80584436,221.48,221.42,13.59559401]
[1758558278937,0.69,221.47,221.42,13.59559401]
[1758558279137,2.80584436,221.46,221.4,13.59559401]
[1758558279353,2.80584436,221.46,221.4,27.16606148]
[1758558280348,26.0,221.43,221.4,27.16606148]
[1758558280556,6.85848108,221.42,221.4,27.16606148]
[1758558281750,0.69,221.41,221.4,27.16606148]
[1758558282055,0.69,221.41,221.36,13.59559401]
[1758558282239,0.69,221.4,221.36,13.59559401]
[1758558282439,26.69,221.39,221.36,13.59559401]
[1758558282652,62.63,221.39,221.33,13.59559401]
[1758558283040,6.85848108,221.38,221.33,13.59559401]
[1758558283362,6.85848108,221.38,221.33,14.29559401]
[1758558283666,62.63,221.39,221.28,0.7]
[1758558283667,6.85848108,221.36,221.28,0.7]
[1758558283878,6.85848108,221.36,221.29,13.59559401]
[1758558284351,6.85848108,221.34,221.29,13.59559401]
[1758558284546,6.85848108,221.34,221.31,13.59559401]
[1758558285652,32.85848108,221.36,221.26,13.59559401]
[1758558285854,32.85848108,221.36,221.31,0.7]
[1758558286238,32.85848108,221.36,221.32,0.7]
[1758558286453,68.77848108,221.36,221.33,0.7]
[1758558286655,68.77848108,221.36,221.33,13.59559401]
[1758558287357,68.77848108,221.36,221.32,0.7]
[1758558287358,61.92,221.36,221.29,14.29559401]
[1758558287553,68.77848108,221.36,221.29,14.29559401]
[1758558287867,68.77848108,221.36,221.31,13.59559401]
[1758558288070,68.77848108,221.36,221.31,14.29559401]
[1758558288568,69.46848108,221.36,221.31,14.29559401]
[1758558288747,32.85848108,221.36,221.3,13.59559401]
[1758558288951,38.06610515,221.36,221.3,13.59559401]
[1758558289167,6.85848108,221.34,221.29,13.59559401]
[1758558289366,6.85848108,221.32,221.29,13.59559401]
[1758558289540,7.54848108,221.32,221.29,13.59559401]
[1758558292452,6.85848108,221.32,221.29,13.59559401]
[1758558293541,6.85848108,221.32,221.29,14.29559401]
[1758558293757,6.85848108,221.32,221.29,13.59559401]
[1758558293953,26.0,221.32,221.3,0.7]
[1758558294150,6.85848108,221.41,221.31,0.7]
[1758558294468,35.84,221.4,221.31,0.7]
[1758558294762,36.53,221.4,221.31,0.7]
[1758558294969,42.69848108,221.4,221.31,0.7]
[1758558295171,6.85848108,221.4,221.33,13.59559401]
[1758558295364,6.85848108,221.4,221.33,14.29559401]
[1758558295550,26.0,221.37,221.33,14.29559401]
[1758558295865,26.0,221.37,221.35,13.59559401]
[1758558296165,35.84,221.41,221.37,13.59559401]
[1758558296363,35.84,221.41,221.35,0.7]
[1758558296545,35.84,221.41,221.37,0.7]
[1758558296741,6.85848108,221.42,221.37,0.7]
[1758558296955,141.74848108,221.45,221.39,13.59559401]
[1758558297155,6.85848108,221.41,221.37,13.59559401]
[1758558297364,0.7,221.41,221.37,13.59559401]
[1758558297566,35.84,221.44,221.38,0.71]
[1758558297751,42.69848108,221.45,221.39,13.59559401]
[1758558298460,47.21418702,221.45,221.39,13.59559401]
[1758558298657,0.7,221.44,221.39,13.59559401]
[1758558298969,7.55848108,221.43,221.39,13.59559401]
[1758558299172,6.85848108,221.41,221.34,30.51792188]
[1758558299368,6.85848108,221.39,221.35,13.59559401]
[1758558300164,7.55848108,221.39,221.34,13.59559401]
[1758558300373,0.7,221.38,221.34,13.59559401]
[1758558300875,6.85848108,221.39,221.33,13.59559401]
[1758558301081,35.84,221.41,221.34,0.71]
[1758558301256,35.84,221.41,221.36,13.59559401]
[1758558301462,0.7,221.4,221.36,13.59559401]
[1758558301658,7.55848108,221.39,221.32,14.30559401]
[1758558302066,6.85848108,221.39,221.33,0.71]
[1758558303378,6.85848108,221.39,221.33,5.22793738]
[1758558303672,7.55848108,221.39,221.33,4.51793738]
[1758558303879,7.55848108,221.39,221.34,13.59559401]
[1758558304261,0.7,221.38,221.34,13.59559401]
[1758558304674,6.85848108,221.39,221.34,13.59559401]
[1758558304879,7.55848108,221.39,221.34,13.59559401]
[1758558305076,7.55848108,221.39,221.34,14.30559401]
[1758558305579,141.05848108,221.4,221.34,18.11339939]
[1758558305882,141.75848108,221.4,221.34,18.11339939]
[1758558306977,141.75848108,221.4,221.34,18.82339939]
[1758558307166,134.2,221.39,221.34,18.82339939]
[1758558307362,134.2,221.39,221.36,13.59559401]
[1758558307567,134.2,221.39,221.38,13.59559401]
[1758558307769,134.2,221.39,221.38,14.30559401]
[1758558309062,4.51524011,221.48,221.38,14.30559401]
[1758558309063,6.85848108,221.49,221.38,14.30559401]
[1758558309274,35.76,221.48,221.4,13.59559401]
[1758558309474,61.76,221.48,221.42,13.59559401]
[1758558309673,26.0,221.48,221.4,13.59559401]
[1758558309984,6.85848108,221.5,221.44,13.59559401]
[1758558310179,0.7,221.52,221.39,51.56920546]
[1758558310180,0.7,221.54,221.46,13.59559401]
[1758558310384,35.74,221.53,221.46,13.59559401]
[1758558310680,26.0,221.51,221.48,13.59559401]
[1758558310886,26.0,221.51,221.46,0.71]
[1758558311072,26.0,221.51,221.48,13.59559401]
[1758558312162,0.7,221.53,221.48,18.82052429]
[1758558312966,0.7,221.52,221.46,13.59559401]
[1758558313477,26.0,221.51,221.48,13.59559401]
[1758558313675,26.0,221.51,221.46,13.59559401]
[1758558313879,0.7,221.5,221.46,13.59559401]
[1758558314093,0.7,221.5,221.42,0.71]
[1758558314094,0.7,221.49,221.42,0.71]
[1758558314298,26.7,221.49,221.42,0.71]
[1758558314481,26.7,221.49,221.43,13.59559401]
[1758558315164,26.0,221.45,221.41,13.59559401]
[1758558315361,26.0,221.45,221.4,0.68]
[1758558315362,26.0,221.45,221.43,13.59559401]
[1758558315779,26.0,221.49,221.45,13.59559401]
[1758558315991,26.0,221.49,221.47,13.59559401]
[1758558316178,26.0,221.49,221.48,14.27559401]
[1758558316378,26.0,221.52,221.48,14.27559401]
[1758558316964,26.0,221.52,221.49,13.59559401]
[1758558317170,26.0,221.54,221.5,0.68]
[1758558317378,175.25383197,221.57,221.52,13.59559401]
[1758558317684,0.68,221.56,221.52,13.59559401]
[1758558318183,0.68,221.56,221.49,5.19487612]
[1758558318388,0.68,221.56,221.49,13.92633617]
[1758558318590,0.68,221.56,221.49,0.68]
[1758558318988,0.68,221.56,221.5,13.59559401]
[1758558319373,4.67383197,221.55,221.48,13.59559401]
[1758558320587,9.1875434,221.55,221.48,13.59559401]
[1758558320786,35.8675434,221.55,221.48,13.59559401]
[1758558321494,26.0,221.52,221.48,13.59559401]
[1758558321792,26.0,221.52,221.47,13.59559401]
[1758558322085,26.0,221.54,221.5,13.59559401]
[1758558322268,26.0,221.54,221.52,13.59559401]
[1758558322470,0.2,221.58,221.54,13.59559401]
[1758558322670,0.2,221.58,221.54,18.10945012]
[1758558322874,0.2,221.58,221.56,13.59559401]
[1758558323276,0.2,221.58,221.57,14.27559401]
[1758558324573,0.2,221.58,221.57,18.78884038]
[1758558324772,0.2,221.58,221.57,54.44884038]
[1758558325494,0.2,221.58,221.57,49.93559401]
[1758558325709,0.2,221.58,221.57,54.44884038]
[1758558325879,0.2,221.58,221.57,18.78884038]
[1758558326077,0.2,221.58,221.57,54.44884038]
[1758558326896,0.2,221.58,221.57,14.27559401]
[1758558327195,0.2,221.58,221.57,54.44884038]
[1758558330899,0.2,221.58,221.57,18.78884038]
[1758558331196,0.2,221.58,221.57,54.44884038]
[1758558331395,0.2,221.58,221.57,18.78884038]
[1758558331781,0.2,221.58,221.57,54.44884038]
[1758558332897,0.2,221.58,221.57,18.78884038]
[1758558333077,0.2,221.58,221.57,54.44884038]
[1758558334277,0.2,221.58,221.57,14.27559401]
[1758558334483,0.2,221.58,221.57,54.44884038]